bitfinex/quotes_BTCUSD_20230103
["timestamp","ask_amount","ask_price","bid_price","bid_amount"]
[1672784874210,6.072693,16670.0,16669.0,1.2942555]
[1672784876381,6.07213624,16670.0,16669.0,1.2942555]
[1672784877273,6.072693,16670.0,16669.0,1.2942555]
[1672784877497,6.34256991,16670.0,16669.0,1.2942555]
[1672784877721,5.89287142,16670.0,16669.0,1.5017805]
[1672784878186,5.89287142,16670.0,16669.0,1.2018605]
[1672784878567,5.89287142,16670.0,16669.0,1.5017805]
[1672784878862,6.34256991,16670.0,16669.0,1.5017805]
[1672784879835,5.89287142,16670.0,16669.0,1.5017805]
[1672784881969,6.34256991,16670.0,16669.0,1.5017805]
[1672784882216,5.89231466,16670.0,16669.0,2.1016965]
[1672784882457,6.07213624,16670.0,16669.0,1.5017805]
[1672784882699,6.07213624,16670.0,16669.0,1.8941715]
[1672784882700,6.34203293,16670.0,16669.0,1.8941715]
[1672784882955,5.89233444,16670.0,16669.0,2.1016965]
[1672784883200,6.34258969,16670.0,16669.0,2.1016965]
[1672784883452,6.34258969,16670.0,16669.0,1.5017805]
[1672784883882,5.8928912,16670.0,16669.0,1.5017805]
[1672784884388,5.89233444,16670.0,16669.0,2.1016965]
[1672784885384,5.8928912,16670.0,16669.0,2.1016965]
[1672784885631,6.072693,16670.0,16669.0,1.8017765]
[1672784885879,6.072693,16670.0,16669.0,1.2942555]
[1672784886121,6.342568,16670.0,16669.0,1.8941715]
[1672784886360,6.34201124,16670.0,16669.0,1.8941715]
[1672784886609,6.34201124,16670.0,16669.0,2.1016965]
[1672784886887,6.34201124,16670.0,16669.0,1.8941715]
[1672784887419,6.342568,16670.0,16669.0,1.2942555]
[1672784888139,6.342568,16670.0,16669.0,1.8941715]
[1672784888398,6.34201124,16670.0,16669.0,2.1016965]
[1672784888640,6.34201124,16670.0,16669.0,1.8941715]
[1672784888880,5.89231275,16670.0,16669.0,1.8941715]
[1672784889097,5.89231275,16670.0,16669.0,2.1016965]
[1672784889326,5.89286951,16670.0,16669.0,1.8017765]
[1672784889797,5.89286951,16670.0,16669.0,2.1016965]
[1672784890320,6.07213624,16670.0,16669.0,2.52502755]
[1672784890566,5.89231035,16670.0,16669.0,2.53393021]
[1672784890820,5.71234555,16670.0,16669.0,2.53393021]
[1672784891064,5.44247295,16670.0,16669.0,2.71406414]
[1672784891306,5.71289926,16670.0,16669.0,2.71406414]
[1672784891545,5.71289926,16670.0,16669.0,3.31398014]
[1672784891802,5.71289926,16670.0,16669.0,2.83393021]
[1672784892299,5.44247295,16670.0,16669.0,2.83393021]
[1672784893042,5.44247295,16670.0,16669.0,3.43382621]
[1672784893292,5.44302666,16670.0,16669.0,2.83391021]
[1672784893539,5.44302666,16670.0,16669.0,3.43382621]
[1672784895776,5.26310121,16670.0,16669.0,3.01404414]
[1672784896026,5.44302666,16670.0,16669.0,3.43382621]
[1672784896265,5.26310121,16670.0,16669.0,3.43382621]
[1672784896729,5.26310121,16670.0,16669.0,3.61396014]
[1672784897227,5.26310121,16670.0,16669.0,3.43382621]
[1672784901352,5.26310121,16670.0,16669.0,3.13392621]
[1672784902633,5.26310121,16670.0,16669.0,3.43381621]
[1672784903914,5.26310121,16670.0,16669.0,3.61395014]
[1672784905167,5.23292082,16670.0,16669.0,3.61395014]
[1672784906108,5.26309954,16670.0,16669.0,3.61395014]
[1672784909136,5.26309954,16670.0,16669.0,3.90213263]
[1672784909381,5.26309954,16670.0,16669.0,3.88415103]
[1672784909637,5.26309954,16670.0,16669.0,3.61395014]
[1672784910883,5.26309954,16670.0,16669.0,3.88415103]
[1672784911861,4.3174111,16670.0,16669.0,5.57513886]
[1672784912111,4.3174111,16670.0,16669.0,5.56758345]
[1672784912361,4.3174111,16670.0,16669.0,5.74739568]
[1672784912607,4.3174111,16670.0,16669.0,5.56758345]
[1672784913106,4.3174111,16670.0,16669.0,5.57665502]
[1672784915092,4.28723238,16670.0,16669.0,5.57665502]
[1672784915860,4.28723238,16670.0,16669.0,5.97665502]
[1672784918801,4.28723238,16670.0,16669.0,6.15639258]
[1672784919722,4.28723238,16670.0,16669.0,5.97665502]
[1672784919971,4.31183999,16670.0,16669.0,5.97665502]
[1672784923372,4.31183999,16670.0,16669.0,6.15637241]
[1672784923609,4.31183999,16670.0,16669.0,5.95867342]
[1672784923831,4.31183999,16670.0,16669.0,5.77912052]
[1672784929154,4.31183999,16670.0,16669.0,5.47923052]
[1672784929385,4.31183999,16670.0,16669.0,5.77912052]
[1672784930139,4.31183999,16670.0,16669.0,6.13839225]
[1672784930378,4.31183999,16670.0,16669.0,5.95867342]
[1672784931297,4.31183999,16670.0,16669.0,5.97665502]
[1672784932006,4.31183999,16670.0,16669.0,6.1555438]
[1672784933001,4.28723238,16670.0,16669.0,6.1555438]
[1672784935055,4.31116394,16670.0,16669.0,6.1555438]
[1672784939304,4.31116394,16670.0,16669.0,6.1555338]
[1672784940360,4.31116394,16670.0,16669.0,5.8556538]
[1672784940600,4.31116394,16670.0,16669.0,6.1555438]
[1672784941264,4.31116394,16670.0,16669.0,5.8556538]
[1672784941521,4.31116394,16670.0,16669.0,6.1555338]
[1672784941778,3.36554262,16670.0,16669.0,6.1555338]
[1672784942280,3.36554262,16670.0,16669.0,5.79627207]
[1672784942531,3.36554262,16670.0,16669.0,6.15609995]
[1672784943023,3.36554262,16670.0,16669.0,5.79627207]
[1672784943270,3.36554262,16670.0,16669.0,6.15609922]
[1672784943529,3.36554262,16670.0,16669.0,5.79627207]
[1672784943775,3.36554262,16670.0,16669.0,6.15609971]
[1672784944265,3.36554262,16670.0,16669.0,5.79627207]
[1672784946542,3.36554262,16670.0,16669.0,5.79613839]
[1672784947264,3.36554262,16670.0,16669.0,5.49624839]
[1672784947584,3.36554262,16670.0,16669.0,5.79613839]
[1672784950230,3.36554262,16670.0,16669.0,5.79612839]
[1672784951410,3.36554262,16670.0,16669.0,5.40063635]
[1672784951887,3.36554262,16670.0,16669.0,5.40897517]
[1672784952134,3.36554262,16670.0,16669.0,5.40063635]
[1672784954154,3.34161106,16670.0,16669.0,5.40063635]
[1672784955141,3.36515071,16670.0,16669.0,5.40063635]
[1672784955393,3.36515071,16670.0,16669.0,5.4089206]
[1672784956354,3.36515071,16670.0,16669.0,5.40063635]
[1672784957096,3.34161106,16670.0,16669.0,5.40063635]
[1672784957310,3.34161106,16670.0,16669.0,5.40724508]
[1672784959097,3.36515071,16670.0,16669.0,5.40724508]
[1672784960077,3.36515071,16670.0,16669.0,5.85727257]
[1672784962059,3.36515071,16670.0,16669.0,5.55739257]
[1672784962299,3.36515071,16670.0,16669.0,5.85728257]
[1672784963426,3.36515071,16670.0,16669.0,5.85727257]
[1672784963874,3.36515071,16670.0,16669.0,5.84727257]
[1672784966313,3.36515071,16670.0,16669.0,5.82929097]
[1672784967060,3.36515071,16670.0,16669.0,5.84727257]
[1672784970169,3.36515071,16670.0,16669.0,5.54739257]
[1672784970408,3.36515071,16670.0,16669.0,5.84727257]
[1672784971901,2.41952621,16670.0,16669.0,5.84727257]
[1672784975979,2.41952621,16670.0,16669.0,5.14739257]
[1672784976224,2.41952621,16670.0,16669.0,5.44727257]
[1672784976934,2.41952621,16670.0,16669.0,5.84727257]
[1672784985630,2.41952621,16670.0,16669.0,5.84728257]
[1672784985904,2.41952621,16670.0,16669.0,5.84067384]
[1672784986366,2.41952621,16670.0,16669.0,5.3996783]
[1672784988905,2.41952621,16670.0,16669.0,5.39064635]
[1672784990613,2.41952621,16670.0,16669.0,5.39841773]
[1672784991136,2.41952621,16670.0,16669.0,5.39064635]
[1672784991311,2.41952621,16670.0,16669.0,5.39913699]
[1672784991747,2.41952621,16670.0,16669.0,5.39064635]
[1672784992535,2.41952621,16670.0,16669.0,5.39932967]
[1672784995478,2.41952621,16670.0,16669.0,5.09944967]
[1672784996222,2.41952621,16670.0,16669.0,5.39932967]
[1672785001819,1.47391549,16670.0,16669.0,5.8494956]
[1672785002284,1.47391549,16670.0,16669.0,5.39063635]
[1672785003239,1.47391549,16670.0,16669.0,5.09075635]
[1672785003482,1.47391549,16670.0,16669.0,5.39849433]
[1672785006176,1.47391549,16670.0,16669.0,5.84864917]
[1672785006419,1.47391549,16670.0,16669.0,5.39849433]
[1672785006633,1.47391549,16670.0,16669.0,5.84865128]
[1672785008364,1.47391549,16670.0,16669.0,5.54877128]
[1672785008585,1.47391549,16670.0,16669.0,5.84866128]
[1672785010222,1.47391549,16670.0,16669.0,5.8408033]
[1672785010488,1.47391549,16670.0,16669.0,5.84789041]
[1672785010997,1.47391549,16670.0,16669.0,5.84789764]
[1672785011244,1.47391549,16670.0,16669.0,5.39773346]
[1672785012219,1.47391549,16670.0,16669.0,5.09784346]
[1672785012490,1.47391549,16670.0,16669.0,5.84789033]
[1672785013644,1.47391549,16670.0,16669.0,5.39772346]
[1672785015954,1.47391549,16670.0,16669.0,5.39063635]
[1672785016979,1.47391549,16670.0,16669.0,5.39960992]
[1672785017228,1.47391549,16670.0,16669.0,5.39955125]
[1672785018676,1.47391549,16670.0,16669.0,5.39063635]
[1672785019610,1.47391549,16670.0,16669.0,5.09075635]
[1672785019826,1.47391549,16670.0,16669.0,5.09929568]
[1672785020086,1.47391549,16670.0,16669.0,5.39918568]
[1672785022676,1.45037584,16670.0,16669.0,5.39918568]
[1672785022921,1.45028152,16670.0,16669.0,5.39918568]
[1672785023402,1.47532155,16670.0,16669.0,5.39918568]
[1672785031936,0.52972209,16670.0,16669.0,5.8494051]
[1672785032436,0.52972209,16670.0,16669.0,5.39918568]
[1672785032921,0.52972209,16670.0,16669.0,5.09929568]
[1672785033178,0.52972209,16670.0,16669.0,5.39918568]
[1672785033641,0.52972209,16670.0,16669.0,5.38120408]
[1672785035302,0.52972209,16670.0,16669.0,5.84940133]
[1672785036949,0.52972209,16670.0,16669.0,4.99918568]
[1672785037156,0.52972209,16670.0,16669.0,5.44939974]
[1672785037635,0.52972209,16670.0,16669.0,4.99918568]
[1672785037861,0.52972209,16670.0,16669.0,5.39918568]
[1672785038841,0.52972209,16670.0,16669.0,5.09929568]
[1672785039565,0.50468206,16670.0,16669.0,5.09929568]
[1672785040526,0.50468206,16670.0,16669.0,5.39918568]
[1672785041500,0.50468206,16670.0,16669.0,5.84940595]
[1672785042197,0.50468206,16670.0,16669.0,5.39918568]
[1672785042446,0.52630643,16670.0,16669.0,5.39918568]
[1672785043477,0.52630643,16670.0,16669.0,5.84940692]
[1672785046115,0.52630643,16670.0,16669.0,5.54951692]
[1672785047316,0.52630643,16670.0,16669.0,5.84940692]
[1672785050224,0.52630643,16670.0,16669.0,6.20953619]
[1672785052365,0.52630643,16670.0,16669.0,6.56853619]
[1672785060036,0.52630643,16670.0,16669.0,6.26864619]
[1672785060283,0.52630643,16670.0,16669.0,6.56853619]
[1672785063110,0.52630643,16670.0,16669.0,6.26864619]
[1672785063353,0.52630643,16670.0,16669.0,6.56853619]
[1672785065306,0.52630643,16670.0,16669.0,6.55999686]
[1672785065733,0.52630643,16670.0,16669.0,7.46820342]
[1672785065953,0.52630643,16670.0,16669.0,6.26831342]
[1672785066200,0.52630643,16670.0,16669.0,6.56820342]
[1672785066717,0.52630643,16670.0,16669.0,7.46820342]
[1672785067206,0.52630643,16670.0,16669.0,6.26831342]
[1672785067476,0.52630643,16670.0,16669.0,7.46820342]
[1672785069240,0.52630643,16670.0,16669.0,7.16831342]
[1672785069488,0.52630643,16670.0,16669.0,7.46820342]
[1672785072477,0.52630643,16670.0,16669.0,7.45999686]
[1672785073460,0.52630643,16670.0,16669.0,7.46824657]
[1672785075436,0.52630643,16670.0,16669.0,7.1081173]
[1672785075941,0.52630643,16670.0,16669.0,7.46819622]
[1672785076420,0.52630643,16670.0,16669.0,7.4682064]
[1672785077661,0.52630643,16670.0,16669.0,7.1683164]
[1672785077924,0.52630643,16670.0,16669.0,6.8082273]
[1672785078433,0.52630643,16670.0,16669.0,7.1081173]
[1672785079464,0.52630643,16670.0,16669.0,7.4682227]
[1672785094432,0.52630643,16670.0,16669.0,7.45997299]
[1672785094670,0.52630643,16670.0,16669.0,7.46670978]
[1672785097920,0.52630643,16670.0,16669.0,7.06670978]
[1672785098927,0.52630643,16670.0,16669.0,7.46670978]
[1672785108334,0.52630643,16670.0,16669.0,7.10770978]
[1672785108586,0.52630643,16670.0,16669.0,7.26018478]
[1672785108846,0.52630643,16670.0,16669.0,7.46770978]
[1672785109293,0.52630643,16670.0,16669.0,7.10770978]
[1672785112502,0.52630643,16670.0,16669.0,6.90018478]
[1672785113188,0.52630643,16670.0,16669.0,6.60029478]
[1672785113396,0.52630643,16670.0,16669.0,6.80781978]
[1672785114144,0.52630643,16670.0,16669.0,7.16581978]
[1672785115531,0.52630643,16670.0,16669.0,7.46570978]
[1672785126762,0.52630643,16670.0,16669.0,7.40304058]
[1672785136771,0.52630643,16670.0,16669.0,7.04293518]
[1672785140046,0.52630643,16670.0,16669.0,7.40306696]
[1672785140293,0.52630643,16670.0,16669.0,6.83541018]
[1672785140510,0.52630643,16670.0,16669.0,7.04293518]
[1672785140799,0.52630643,16670.0,16669.0,7.17755918]
[1672785141048,0.52630643,16670.0,16669.0,7.19554078]
[1672785141568,0.52630643,16670.0,16669.0,7.40306578]
[1672785141819,0.52630643,16670.0,16669.0,7.19554078]
[1672785145923,0.52630643,16670.0,16669.0,7.40306578]
[1672785146175,0.52630643,16670.0,16669.0,7.40305479]
[1672785147524,0.52630643,16670.0,16669.0,7.04293518]
[1672785148210,0.52630643,16670.0,16669.0,6.83541018]
[1672785148959,0.52630643,16670.0,16669.0,7.1955258]
[1672785149656,0.52630643,16670.0,16669.0,7.4030508]
[1672785150400,0.52630643,16670.0,16669.0,7.04293518]
[1672785150867,0.52630643,16670.0,16669.0,6.83541018]
[1672785151133,0.52630643,16670.0,16669.0,7.19552123]
[1672785151608,0.52630643,16670.0,16669.0,6.83541018]
[1672785152124,0.52630643,16670.0,16669.0,7.1955206]
[1672785153074,0.52630643,16670.0,16669.0,6.83541018]
[1672785153534,0.52630643,16670.0,16669.0,7.19551572]
[1672785153776,0.52630643,16670.0,16669.0,6.83541018]
[1672785154381,0.52630643,16670.0,16669.0,7.19551575]
[1672785157595,0.52630643,16670.0,16669.0,7.17753415]
[1672785158330,0.52630643,16670.0,16669.0,7.19551575]
[1672785158804,0.52630643,16670.0,16669.0,6.79551575]
[1672785159719,0.52630643,16670.0,16669.0,7.00304075]
[1672785160167,0.52630643,16670.0,16669.0,7.40304075]
[1672785160834,0.52630643,16670.0,16669.0,7.04293518]
[1672785161776,0.52630643,16670.0,16669.0,6.83541018]
[1672785162104,0.52630643,16670.0,16669.0,6.53552018]
[1672785162595,0.52630643,16670.0,16669.0,6.89561879]
[1672785164358,0.52630643,16670.0,16669.0,6.53552018]
[1672785164609,0.52630643,16670.0,16669.0,6.89562382]
[1672785164860,0.52630643,16670.0,16669.0,7.10314882]
[1672785165617,0.52630643,16670.0,16669.0,7.04293518]
[1672785168323,0.52630643,16670.0,16669.0,6.74304518]
[1672785168569,0.52630643,16670.0,16669.0,7.04293518]
[1672785168959,0.52630643,16670.0,16669.0,7.03619839]
[1672785169451,0.52630643,16670.0,16669.0,5.23645039]
[1672785169931,0.52630643,16670.0,16669.0,6.22875739]
[1672785170200,0.52630643,16670.0,16669.0,6.43628239]
[1672785170442,0.52630643,16670.0,16669.0,7.03619839]
[1672785171144,0.52630643,16670.0,16669.0,6.73630839]
[1672785171386,0.52630643,16670.0,16669.0,7.03619839]
[1672785171633,0.52630643,16670.0,16669.0,7.04506026]
[1672785172107,0.52630643,16670.0,16669.0,6.74517026]
[1672785172850,0.52630643,16670.0,16669.0,7.04506026]
[1672785174332,0.52630643,16670.0,16669.0,6.74517026]
[1672785174575,0.52630643,16670.0,16669.0,7.04506026]
[1672785176051,0.52630643,16670.0,16669.0,6.74517026]
[1672785182634,0.52630643,16670.0,16669.0,7.04506026]
[1672785184274,0.52630643,16670.0,16669.0,6.74517026]
[1672785184527,0.52630643,16670.0,16669.0,7.04506026]
[1672785186257,0.52630643,16670.0,16669.0,7.4052153]
[1672785187496,0.52630643,16670.0,16669.0,7.1053253]
[1672785187737,0.52630643,16670.0,16669.0,7.4052153]
[1672785194203,0.52575272,16670.0,16669.0,7.4052153]
[1672785194462,0.52636847,16670.0,16669.0,7.4052153]
[1672785197993,0.52636847,16670.0,16669.0,7.1053253]
[1672785198239,0.52636847,16670.0,16669.0,7.1976903]
[1672785199451,0.52636847,16670.0,16669.0,7.4052153]
[1672785199946,0.52636847,16670.0,16669.0,7.4052253]
[1672785200494,0.52636847,16670.0,16669.0,7.1053253]
[1672785200706,0.52636847,16670.0,16669.0,7.1976903]
[1672785201198,0.52636847,16670.0,16669.0,7.46777087]
[1672785201436,0.52636847,16670.0,16669.0,7.67529587]
[1672785201695,0.52636847,16670.0,16669.0,7.4052153]
[1672785201937,0.52636847,16670.0,16669.0,7.67529585]
[1672785202468,0.52636847,16670.0,16669.0,7.46777085]
[1672785203693,0.52636847,16670.0,16669.0,7.46776101]
[1672785203913,0.52636847,16670.0,16669.0,7.4052153]
[1672785204162,0.52636847,16670.0,16669.0,7.1976903]
[1672785204416,0.52636847,16670.0,16669.0,7.44977955]
[1672785205423,0.52636847,16670.0,16669.0,6.99955831]
[1672785206163,0.52636847,16670.0,16669.0,8.08291111]
[1672785206431,0.52636847,16670.0,16669.0,8.29043611]
[1672785206919,0.52636847,16670.0,16669.0,8.08291111]
[1672785207429,0.52636847,16670.0,16669.0,8.29043611]
[1672785211638,0.52636847,16670.0,16669.0,8.08291111]
[1672785211886,0.52636847,16670.0,16669.0,8.29043611]
[1672785212148,0.52636847,16670.0,16669.0,8.08291111]
[1672785212645,0.52636847,16670.0,16669.0,8.29043611]
[1672785214682,0.52636847,16670.0,16669.0,8.30841771]
[1672785215426,0.52636847,16670.0,16669.0,8.75863895]
[1672785215673,0.52636847,16670.0,16669.0,8.30841771]
[1672785216161,0.52636847,16670.0,16669.0,8.75863895]
[1672785216661,0.52636847,16670.0,16669.0,8.1886781]
[1672785217646,0.52636847,16670.0,16669.0,8.4885681]
[1672785218657,0.52636847,16670.0,16669.0,8.1886781]
[1672785219917,0.52636847,16670.0,16669.0,7.7886781]
[1672785220962,0.52636847,16670.0,16669.0,8.1886781]
[1672785221190,0.52636847,16670.0,16669.0,8.4885681]
[1672785229511,0.52636847,16670.0,16669.0,8.4705865]
[1672785230269,0.52636847,16670.0,16669.0,8.4885681]
[1672785231275,0.52636847,16670.0,16669.0,8.11955119]
[1672785231526,0.52630307,16670.0,16669.0,8.18221863]
[1672785232231,0.52630307,16670.0,16669.0,7.88232863]
[1672785232732,0.52630307,16670.0,16669.0,8.19013372]
[1672785232987,0.52630307,16670.0,16669.0,8.18219863]
[1672785233248,0.52630307,16670.0,16669.0,7.88232863]
[1672785234705,0.52630307,16670.0,16669.0,7.67480363]
[1672785235211,0.52630307,16670.0,16669.0,7.68313543]
[1672785236419,0.13871133,16670.0,16669.0,7.45828974]
[1672785236670,0.13871133,16670.0,16669.0,7.76547425]
[1672785236906,0.13871133,16670.0,16669.0,8.12550663]
[1672785237659,0.13871133,16670.0,16669.0,8.10314456]
[1672785237874,0.13871133,16670.0,16669.0,8.1109986]
[1672785238600,0.13871133,16670.0,16669.0,8.3185236]
[1672785239075,0.13871133,16670.0,16669.0,8.1109686]
[1672785240052,0.13871133,16670.0,16669.0,7.8110886]
[1672785241547,0.13871133,16670.0,16669.0,8.1109786]
[1672785241760,0.13871133,16670.0,16669.0,8.3185036]
[1672785241993,0.13871133,16670.0,16669.0,8.1109786]
[1672785243514,0.13871133,16670.0,16669.0,8.10312456]
[1672785243754,0.13871133,16670.0,16669.0,7.74989041]
[1672785243968,0.13871133,16670.0,16669.0,7.74309218]
[1672785244492,0.13871133,16670.0,16669.0,7.75201384]
[1672785244741,0.13871133,16670.0,16669.0,7.74309218]
[1672785245251,0.13871133,16670.0,16669.0,7.75078328]
[1672785246262,0.13871133,16670.0,16669.0,7.45089328]
[1672785246506,0.13871133,16670.0,16669.0,6.66742048]
[1672785247734,0.13871133,16670.0,16669.0,6.36754048]
[1672785247978,0.13871133,16670.0,16669.0,6.66744048]
[1672785248224,0.13871133,16670.0,16669.0,7.02743991]
[1672785248958,0.13871133,16670.0,16669.0,7.23496491]
[1672785249212,0.13871133,16670.0,16669.0,6.66744048]
[1672785249714,0.13871133,16670.0,16669.0,7.02745735]
[1672785250457,0.13871133,16670.0,16669.0,7.23566198]
[1672785250722,0.13871133,16670.0,16669.0,7.23566366]
[1672785250970,0.13871133,16670.0,16669.0,6.87564511]
[1672785251235,0.13871133,16670.0,16669.0,6.66812011]
[1672785251503,0.13871133,16670.0,16669.0,6.66633117]
[1672785254975,0.13871133,16670.0,16669.0,6.66816714]
[1672785255218,0.13871133,16670.0,16669.0,7.02823638]
[1672785261353,0.13871133,16670.0,16669.0,6.65974938]
[1672785261835,0.13871133,16670.0,16669.0,6.66656101]
[1672785262298,0.13859211,16670.0,16669.0,6.66653101]
[1672785262550,0.13859211,16670.0,16669.0,6.65971938]
[1672785262808,0.13859211,16670.0,16669.0,6.66730091]
[1672785264050,0.13859211,16670.0,16669.0,6.36743091]
[1672785264263,0.13859211,16670.0,16669.0,6.66731091]
[1672785265544,0.13859211,16670.0,16669.0,6.65972938]
[1672785266814,0.13859211,16670.0,16669.0,6.66736456]
[1672785267076,0.13859211,16670.0,16669.0,6.65972938]
[1672785267847,0.13859211,16670.0,16669.0,6.66884955]
[1672785268086,0.13859211,16670.0,16669.0,6.65972938]
[1672785269526,0.13859211,16670.0,16669.0,6.64174778]
[1672785270239,0.13859211,16670.0,16669.0,6.65972938]
[1672785274281,0.13859211,16670.0,16669.0,6.86725438]
[1672785274524,0.13859211,16670.0,16669.0,6.65972938]
[1672785275232,0.13859211,16670.0,16669.0,6.66757572]
[1672785276233,0.13859211,16670.0,16669.0,7.0276832]
[1672785277305,0.13859211,16670.0,16669.0,7.0276932]
[1672785277613,0.13859211,16670.0,16669.0,7.01984686]
[1672785278052,0.13859211,16670.0,16669.0,6.66657212]
[1672785278295,0.13859211,16670.0,16669.0,7.02667695]
[1672785278539,0.13859211,16670.0,16669.0,7.01984421]
[1672785278788,0.13859211,16670.0,16669.0,7.02836984]
[1672785280817,0.13859211,16670.0,16669.0,6.72847984]
[1672785281063,0.13859211,16670.0,16669.0,6.62835984]
[1672785282067,0.13859211,16670.0,16669.0,7.02835984]
[1672785282320,0.13859211,16670.0,16669.0,6.6668454]
[1672785282563,0.13859211,16670.0,16669.0,7.02694533]
[1672785283582,0.11696774,16670.0,16669.0,7.02694533]
[1672785284303,0.11696774,16670.0,16669.0,6.72706533]
[1672785284518,0.11696774,16670.0,16669.0,7.02695533]
[1672785285748,0.1393507,16670.0,16669.0,7.23448033]
[1672785285990,0.1393507,16670.0,16669.0,7.02695533]
[1672785286689,0.1393507,16670.0,16669.0,7.02696533]
[1672785287176,0.1393507,16670.0,16669.0,6.72706533]
[1672785287419,0.1393507,16670.0,16669.0,7.02696533]
[1672785290490,0.11696774,16670.0,16669.0,7.02696533]
[1672785293575,0.1393507,16670.0,16669.0,7.02696533]
[1672785294766,0.1393507,16670.0,16669.0,7.01984931]
[1672785295112,0.1393507,16670.0,16669.0,7.02736732]
[1672785295275,0.1393507,16670.0,16669.0,7.01984931]
[1672785295552,0.1393507,16670.0,16669.0,7.02892323]
[1672785295768,0.1393507,16670.0,16669.0,7.01984931]
[1672785296267,0.1393507,16670.0,16669.0,7.02862702]
[1672785297744,0.1393507,16670.0,16669.0,7.02704607]
[1672785297983,0.1393507,16670.0,16669.0,7.01984931]
[1672785298223,0.1393507,16670.0,16669.0,7.02690219]
[1672785298476,0.1393507,16670.0,16669.0,7.02688219]
[1672785300208,0.1393507,16670.0,16669.0,7.01982931]
[1672785300508,0.1393507,16670.0,16669.0,6.80496832]
[1672785300725,0.1393507,16670.0,16669.0,7.01249332]
[1672785301219,0.1393507,16670.0,16669.0,6.80495832]
[1672785301718,0.1393507,16670.0,16669.0,6.96820973]
[1672785306522,0.1393507,16670.0,16669.0,6.6081098]
[1672785310335,0.1393507,16670.0,16669.0,6.44485839]
[1672785310604,0.1393507,16670.0,16669.0,6.89978699]
[1672785313362,0.1393507,16670.0,16669.0,6.59991699]
[1672785313613,0.1393507,16670.0,16669.0,6.89978699]
[1672785316721,0.1393507,16670.0,16669.0,6.88180539]
[1672785317640,0.1393507,16670.0,16669.0,6.89978699]
[1672785318608,0.13925027,16670.0,16669.0,7.07868699]
[1672785318849,0.13925027,16670.0,16669.0,6.83599075]
[1672785320985,0.13925027,16670.0,16669.0,6.65649075]
[1672785321246,0.13925027,16670.0,16669.0,7.1065479]
[1672785321498,0.13925027,16670.0,16669.0,6.65649075]
[1672785321747,0.13925027,16670.0,16669.0,6.44896575]
[1672785322223,0.13925027,16670.0,16669.0,6.44891575]
[1672785322855,0.13925027,16670.0,16669.0,6.89894545]
[1672785323345,0.13925027,16670.0,16669.0,7.10647057]
[1672785327316,0.13925027,16670.0,16669.0,7.10650057]
[1672785328083,0.13925027,16670.0,16669.0,7.01727152]
[1672785328333,0.14125027,16670.0,16669.0,7.13527152]
[1672785328824,0.14125027,16670.0,16669.0,6.83542152]
[1672785329065,0.14125027,16670.0,16669.0,7.13527152]
[1672785329314,0.14125027,16670.0,16669.0,6.6852417]
[1672785329563,0.14125027,16670.0,16669.0,6.4777167]
[1672785329811,0.14125027,16670.0,16669.0,6.6672601]
[1672785330304,0.14125027,16670.0,16669.0,6.6852417]
[1672785330479,0.14125027,16670.0,16669.0,7.13524866]
[1672785332362,0.14125027,16670.0,16669.0,7.13527866]
[1672785334248,0.14125027,16670.0,16669.0,6.92775366]
[1672785336649,0.14125027,16670.0,16669.0,7.13527866]
[1672785337444,0.14125027,16670.0,16669.0,6.6852717]
[1672785337735,0.14125027,16670.0,16669.0,6.92780396]
[1672785337995,0.14125027,16670.0,16669.0,7.1353292]
[1672785338229,0.14125027,16670.0,16669.0,6.9278042]
[1672785338470,0.14125027,16670.0,16669.0,6.4777367]
[1672785338952,0.14125027,16670.0,16669.0,6.6852617]
[1672785339410,0.14125027,16670.0,16669.0,6.4777367]
[1672785339860,0.14125027,16670.0,16669.0,6.3853917]
[1672785340573,0.14125027,16670.0,16669.0,6.6852717]
[1672785341038,0.14125027,16670.0,16669.0,6.4777467]
[1672785341279,0.14125027,16670.0,16669.0,6.4777367]
[1672785341540,0.14125027,16670.0,16669.0,6.6852617]
[1672785341971,0.14125027,16670.0,16669.0,6.0777367]
[1672785342223,0.14114856,16670.0,16669.0,6.0777367]
[1672785342471,0.14114856,16670.0,16669.0,6.2852617]
[1672785343005,0.14114856,16670.0,16669.0,6.6852617]
[1672785343680,0.14114856,16670.0,16669.0,6.4777367]
[1672785344165,0.14114856,16670.0,16669.0,6.6852617]
[1672785345094,0.14114856,16670.0,16669.0,6.6852417]
[1672785346475,0.14114856,16670.0,16669.0,6.3853917]
[1672785346722,0.14114856,16670.0,16669.0,6.6852417]
[1672785350564,0.14114856,16670.0,16669.0,7.53215689]
[1672785351314,0.14114856,16670.0,16669.0,7.53215558]
[1672785351818,0.14114856,16670.0,16669.0,7.51417398]
[1672785352066,0.14114856,16670.0,16669.0,6.3674101]
[1672785352280,0.14114856,16670.0,16669.0,7.30662749]
[1672785352498,0.14114856,16670.0,16669.0,8.07102405]
[1672785352763,0.14114856,16670.0,16669.0,7.53213409]
[1672785353247,0.14114856,16670.0,16669.0,8.07102405]
[1672785354944,0.14114856,16670.0,16669.0,7.13534275]
[1672785355202,0.14114856,16670.0,16669.0,6.92781775]
[1672785355424,0.14114856,16670.0,16669.0,6.93468549]
[1672785355693,0.14114856,16670.0,16669.0,6.93473549]
[1672785357649,0.14114856,16670.0,16669.0,6.92786775]
[1672785359821,0.14114856,16670.0,16669.0,6.90988615]
[1672785360306,0.14114856,16670.0,16669.0,6.91640186]
[1672785360551,0.14114856,16670.0,16669.0,6.92786775]
[1672785363705,0.14114856,16670.0,16669.0,6.92783775]
[1672785363961,0.14114856,16670.0,16669.0,6.9349296]
[1672785364461,0.14114856,16670.0,16669.0,6.92783775]
[1672785364962,0.14114856,16670.0,16669.0,6.63600402]
[1672785365211,0.14114856,16670.0,16669.0,6.93589402]
[1672785365703,0.14114856,16670.0,16669.0,6.9277644]
[1672785365972,0.14114856,16670.0,16669.0,6.93655731]
[1672785366438,0.14114856,16670.0,16669.0,6.9277644]
[1672785366700,0.14114856,16670.0,16669.0,6.93461324]
[1672785367190,0.14114856,16670.0,16669.0,7.29466128]
[1672785367674,0.14114856,16670.0,16669.0,7.28781244]
[1672785368169,0.14114856,16670.0,16669.0,7.49533744]
[1672785368420,0.14114856,16670.0,16669.0,7.28781244]
[1672785368899,0.15977064,16670.0,16669.0,7.49533744]
[1672785370161,0.15977064,16670.0,16669.0,7.28781244]
[1672785370842,0.15977064,16670.0,16669.0,7.49533744]
[1672785371356,0.15977064,16670.0,16669.0,7.19545744]
[1672785371603,0.15977064,16670.0,16669.0,7.28781244]
[1672785371812,0.15977064,16670.0,16669.0,7.50289532]
[1672785372106,0.15977064,16670.0,16669.0,7.20301532]
[1672785372311,0.15977064,16670.0,16669.0,7.29537032]
[1672785372573,0.15977064,16670.0,16669.0,7.28781244]
[1672785372810,0.15977064,16670.0,16669.0,7.29426043]
[1672785373060,0.15977064,16670.0,16669.0,6.98793244]
[1672785373855,0.15977064,16670.0,16669.0,7.28781244]
[1672785374856,0.15977064,16670.0,16669.0,7.27699396]
[1672785375805,0.15977064,16670.0,16669.0,7.26983084]
[1672785376565,0.15977064,16670.0,16669.0,7.27801885]
[1672785377557,0.15977064,16670.0,16669.0,7.26983084]
[1672785378046,0.15977064,16670.0,16669.0,6.97744117]
[1672785378296,0.15977064,16670.0,16669.0,6.07744117]